Cogmind - Beta 16 @@@ ROGUE MODE // 2025.12.19 @ 14:17:12 Player: PE-P51 Result: Destroyed by 3U-UA4(R) with Subdweller Beam Cannon Performance ------------- Evolutions (0) 0 Regions Visited (2) 400 Robots Destroyed (28) 140 Value Destroyed (591) 591 Prototype IDs (0) 0 Alien Tech Used (0) 0 Bonus (0) 0 TOTAL SCORE: 1131 Bonus ------- None Cogmind --------- Core Integrity 0/250 Matter 243/300 Energy 19/100 System Corruption 2% Temperature Cool (63) Movement Treading (160) Location -10/Subcaves Parts ------- > --- POWER (1) -------- Subdweller Power Source > --- PROPULSION (2) --- Light Treads Light Treads > --- UTILITY (2) ------ Large Storage Unit Structural Scanner > --- WEAPON (2) ------- Subdweller Laser Subdweller Beam Cannon > --- INVENTORY (15) --- Light Treads Compact Wheel Large Storage Unit Medium Laser Assault Rifle Light Assault Rifle Peak State ------------ > --- POWER ------------ Subdweller Power Source > --- PROPULSION ------- Aluminum Leg Aluminum Leg > --- UTILITY ---------- Large Storage Unit Structural Scanner > --- WEAPON ----------- Subdweller Laser Subdweller Beam Cannon > --- INVENTORY -------- Ion Engine Ion Engine Light Treads Light Treads Light Treads Compact Wheel Large Storage Unit Medium Laser Assault Rifle Light Assault Rifle [Rating: 11] Favorites ----------- Power Ion Engine Engine Ion Engine Propulsion Aluminum Leg Treads Light Treads Leg Aluminum Leg Utility Structural Scanner Device Structural Scanner Storage Large Storage Unit Weapon Light Cannon Energy Gun Subdweller Laser Energy Cannon Subdweller Beam Cannon Ballistic Gun Assault Rifle Ballistic Cannon Light Cannon Build | -11 -10 -10 ------- Run | Yrd Mat Sub Slots Evolved . | . . . Power . | . . . Propulsion . | . . . Utility . | . . . Weapon . | . . . Parts Attached 17 | . 10 7 Power 4 | . 2 2 Engine 4 | . 2 2 Core . | . . . Reactor . | . . . Propulsion 3 | . 1 2 Treads 2 | . . 2 Leg 1 | . 1 . Wheel . | . . . Hover . | . . . Flight . | . . . Utility 3 | . 3 . Device 1 | . 1 . Storage 2 | . 2 . Processor . | . . . Hackware . | . . . Protection . | . . . Artifact . | . . . Weapon 7 | . 4 3 Energy Gun 1 | . . 1 Energy Cannon 1 | . . 1 Ballistic Gun 2 | . 2 . Ballistic Cannon 3 | . 2 1 Launcher . | . . . Special Weapon . | . . . Impact Weapon . | . . . Slashing Weapon . | . . . Piercing Weapon . | . . . Special Melee Weapon . | . . . Unidentified Prototypes . | . . . Parts Lost 5 | . 1 4 Power 2 | . . 2 Propulsion 2 | . . 2 Utility . | . . . Weapon 1 | . 1 . Highest Loss Streak 3 | . 1 3 To Critical Strikes . | . . . Average Backups 9 | . 10 9 Power 1 | . 1 1 Propulsion 3 | . 4 3 Utility . | . . 1 Weapon 4 | . 4 3 Tool/Special . | . . . Unused Backups 11 | . 5 6 Power 1 | . 1 . Propulsion 6 | . 3 3 Utility 2 | . 1 1 Weapon 2 | . . 2 Tool/Special . | . . . Average Slot Usage (%) 99 | . 99 98 Engine 13 | . 14 13 Leg 27 | . 28 25 Device 13 | . 13 14 Storage 14 | . 14 14 Energy Gun 3 | . . 10 Ballistic Gun 4 | . 4 3 Ballistic Cannon 19 | . 23 11 Peak Build Rating 11 | . 8 11 Average Rating 8 | . 7 9 On Entrance 6 | 6 6 8 Avg Prop Armor Cover (%) . | . . . Naked Turns . | . . . Heaviest Build 38 | 11 32 38 Greatest Support 40 | 20 20 40 Greatest Overweight (x) 1 | . 1 1 Average Overweight (x) . | . . . Largest Inventory Capacity 15 | . 15 15 Average Capacity 13 | . 12 15 Most Carried 11 | . 11 10 Average Carried 9 | . 10 9 Final Capacity 15 | 8 15 15 Final Carried 10 | 6 10 6 Class Distribution -------------------- 100% | Mutant Dominant Class ---------------- Mutant | -10/Materials Mutant | -10/Subcaves Resources | -11 -10 -10 ----------- Run | Yrd Mat Sub Matter Collected 772 | 155 555 62 Remotely . | . . . Salvage Created 786 | . 736 50 Parts 42 | . 42 . Haulers Intercepted 1 | . 1 . Recyclers Shooed . | . . . Parts Field Recycled . | . . . Retrieved Matter . | . . . Parts Self-Destructed 6 | . . 6 Prevented . | . . . Parts Restored . | . . . Kills | -11 -10 -10 ------- Run | Yrd Mat Sub Combat Hostiles Destroyed 21 | . 20 1 Guns 1 | . 1 . Cannons 20 | . 19 1 Classes Destroyed 9 | . 8 1 Worker 1 | . 1 . Builder 1 | . 1 . Tunneler 1 | . 1 . Hauler 1 | . 1 . Recycler 2 | . 2 . Watcher 1 | . 1 . Swarmer 8 | . 8 . Grunt 12 | . 12 . Subdweller 1 | . . 1 Best Kill Streak 6 | . 6 1 Combat Bots Only 6 | . 6 1 Max Kills in Single Turn 2 | . 2 1 Gunslinging . | . . . Exploded . | . . . Melee . | . . . Uniques/NPCs Destroyed . | . . . Combat | -11 -10 -10 -------- Run | Yrd Mat Sub Hostile Shots Fired 118 | . 74 44 Missed 30 | . 19 11 Hits 88 | . 55 33 Projectile 88 | . 55 33 Critical Strikes 4 | . 1 3 Damage Taken 1297 | . 499 798 Core 266 | . 88 178 Absorbed by Shields . | . . . Core Remaining (%) 100 | 100 . . Volleys Fired 71 | . 55 16 Largest 2 | . 2 2 Hottest 140 | . 60 140 Shots Fired 140 | . 108 32 Gun 25 | . 9 16 Cannon 115 | . 99 16 Launcher . | . . . Special . | . . . Kinetic 113 | . 108 5 Thermal 27 | . . 27 Explosive . | . . . Electromagnetic . | . . . Robot Hit Streak 14 | . 7 14 Robot Miss Streak 4 | . 4 2 Penetration Max . | . . . Secondary Targets . | . . . Shots Hit Robots 73 | . 54 19 Core Hits 32 | . 30 2 Critical Kills . | . . . Critical Parts Destroyed 1 | . . 1 Critical Strikes 5 | . 4 1 Destroy 1 | . . 1 Blast 4 | . 4 . Melee Attacks . | . . . Impact . | . . . Slashing . | . . . Piercing . | . . . Sneak Attacks . | . . . Combat Hostiles . | . . . Follow-up Attacks . | . . . Damage Inflicted 1382 | . 944 438 Guns 286 | . 93 193 Cannons 1061 | . 821 240 Explosions . | . . . Melee . | . . . Ramming 35 | . 30 5 Kinetic 914 | . 914 . Thermal 433 | . . 433 Explosive . | . . . Electromagnetic . | . . . Impact . | . . . Slashing . | . . . Piercing . | . . . Highest Corruption 2 | . 2 2 Average Corruption 2 | . 2 2 Corruption Purged . | . . . Corruption Blocked . | . . . Effects 12 | . 8 4 Matter Fused 2 | . 1 1 Energy Discharges 2 | . 2 . Data Loss (minor) 6 | . 3 3 Misfires 1 | . 1 . Alerts 1 | . 1 . Overload Shots . | . . . Overflow Damage 12 | . 12 . Projectiles 12 | . 12 . Explosions . | . . . Melee . | . . . Knockbacks 16 | . 16 . Impact 1 | . 1 . Kinetic 14 | . 14 . Secondary 1 | . 1 . Self-Inflicted Damage . | . . . Shots . | . . . Rammed 1 | . . 1 Targets Rammed 5 | . 4 1 Kicked 4 | . 4 . Crushed . | . . . Highest Temperature 402 | . 54 402 Average Temperature 78 | . 23 113 Received Heat Transfer 1188 | . 126 1062 Effects 2 | . . 2 Shutdowns 1 | . . 1 Matter Decay 1 | . . 1 Siege Activations . | . . . Martial Activations . | . . . Shielding Activations . | . . . Robots Disrupted . | . . . Combat Hostiles . | . . . Robots Corrupted . | . . . Combat Hostiles . | . . . Parts Fried . | . . . Impact Corruptions . | . . . Robots Melted . | . . . Combat Hostiles . | . . . Parts Melted . | . . . Heat Transferred 583 | . . 583 Parts Sabotaged . | . . . Parts Stolen . | . . . Parts Stripped . | . . . Power Chain Reactions . | . . . Alert | -11 -10 -10 ------- Run | Yrd Mat Sub Maximum Alert Level 1 | . 1 . Low Security (%) 66 | . 66 . Level 1 33 | . 33 . Level 2 . | . . . Level 3 . | . . . Level 4 . | . . . Level 5 . | . . . High Security . | . . . Max Security . | . . . Peak Influence 302 | . 302 . Initial . | . . . Average 112 | . 112 . Influence Increases 669 | . 669 . Destroy 0b10 Robot/C 400 | . 400 . Destroy 0b10 Robot/NC 35 | . 35 . Destroy Leader 64 | . 64 . Successful Hack 15 | . 15 . Select Force Hacks 60 | . 60 . Disable Machine 30 | . 30 . Destroy Structure 5 | . 5 . Lose Combat Pursuer 60 | . 60 . Influence Decreases 669 | . 432 237 Entered New Map 114 | . . 114 Time Decay 545 | . 422 123 Lost Part 10 | . 10 . Squads Dispatched 4 | . 4 . Investigation 4 | . 4 . Extermination . | . . . Reinforcement . | . . . Assault . | . . . Garrison . | . . . Intercept . | . . . Searches Triggered . | . . . Construction Impeded . | . . . Haulers Reinforced . | . . . Active Scanning Responses . | . . . Cargo Convoy Interrupts . | . . . Stealth | -11 -10 -10 --------- Run | Yrd Mat Sub Distress Signals 4 | . 4 . Communications Jammed . | . . . Distress Signals . | . . . Times Spotted 35 | . 33 2 Peak Tracking Total 7 | . 7 2 Tactical Retreats 3 | . 3 . Traps | -11 -10 -10 ------- Run | Yrd Mat Sub Traps Triggered 2 | . 2 . Indirectly . | . . . Trap Hack Attempts . | . . . Triggered . | . . . Disarmed . | . . . Reprogrammed . | . . . Reused . | . . . Traps Extracted . | . . . Installed . | . . . Triggered . | . . . Machines | -11 -10 -10 ---------- Run | Yrd Mat Sub Machines Disabled 3 | . 3 . Max in Single Turn 1 | . 1 . Machines Repaired . | . . . Machines Dismantled . | . . . Machines Sabotaged . | . . . Overloaded Fab Kills . | . . . Hacking | -11 -10 -10 --------- Run | Yrd Mat Sub Machines Accessed 6 | . 6 . Terminals 4 | . 4 . Fabricators . | . . . Repair Stations . | . . . Recycling Units 2 | . 2 . Scanalyzers . | . . . Garrison Access . | . . . Total Hacks 19 | . 19 . Successful 7 | . 7 . Failed 12 | . 12 . Catastrophic 1 | . 1 . Database Lockouts . | . . . Manual 11 | . 11 . Terminals 11 | . 11 . Fabricators . | . . . Repair Stations . | . . . Recycling Units 8 | . 8 . Scanalyzers . | . . . Garrison Access . | . . . Terminal Hacks 5 | . 5 . Robot Analysis 2 | . 2 . Locate Traps 1 | . 1 . Registered Components 1 | . 1 . Zone Layout 1 | . 1 . Fabricator Hacks . | . . . Repair Station Hacks . | . . . Recycling Unit Hacks . | . . . Scanalyzer . | . . . Garrison Access Hacks . | . . . Unauthorized Hacks 2 | . 2 . Terminals . | . . . Fabricators . | . . . Repair Stations . | . . . Recycling Units 2 | . 2 . Tunnel 2 | . 2 . Scanalyzers . | . . . Garrison Access . | . . . Data Cores Recovered . | . . . Used . | . . . Hacking Detections 6 | . 6 . Full Trace Events 2 | . 2 . Feedback Events . | . . . Feedback Blocked . | . . . Robot Schematics Acquired . | . . . Robots Built . | . . . Authchips . | . . . Time . | . . . Total Robot Build Rating . | . . . Part Schematics Acquired . | . . . Parts Built . | . . . Authchips . | . . . Time . | . . . Total Part Build Rating . | . . . Part Studies Acquired . | . . . Parts Repaired . | . . . Time . | . . . Parts Recycled . | . . . Recycled Matter . | . . . Retrieved Matter . | . . . Retrieved Components . | . . . Parts Scanalyzed . | . . . Part Schematics Acquired . | . . . Parts Damaged . | . . . Bothacking | -11 -10 -10 ------------ Run | Yrd Mat Sub Used RIF Installer . | . . . Robots Hacked . | . . . Non-combat . | . . . Combat . | . . . Robot Hacks Applied . | . . . Relay Couplers Released . | . . . Fabnet Peak Effective % . | . . . Robots Rewired . | . . . Allies Hacked . | . . . Hacks Repelled . | . . . Allies | -11 -10 -10 -------- Run | Yrd Mat Sub Total Allies . | . . . Largest Group . | . . . Highest-Rated Group . | . . . Highest-Rated Ally . | . . . Total Orders . | . . . Ally Attacks . | . . . Total Damage . | . . . Kills . | . . . Allies Corrupted . | . . . Allies Melted . | . . . Intel | -11 -10 -10 ------- Run | Yrd Mat Sub Active Infowar (turns) 2486 | . 1705 781 Structural 2486 | . 1705 781 Robot Analysis Total 2 | . 2 . Derelict Logs Recovered . | . . . Drone Launches . | . . . Drone Recoveries . | . . . Exploration | -11 -10 -10 ------------- Run | Yrd Mat Sub Turns Passed 2524 | . 1743 781 Spaces Moved 1180 | 1 820 359 Core . | . . . Treads 3 | . . 3 Legs 1177 | 1 820 356 Wheels . | . . . Hover . | . . . Flight . | . . . Fastest Speed 120 | 120 120 160 Average Speed 187 | 120 185 189 Slowest Speed 190 | 120 190 190 Overloaded Moves . | . . . Propulsion Burnouts . | . . . Robots Hopped . | . . . Potential Cave-ins . | . . . Cave-ins Triggered . | . . . Exploration Rate (%) 40 | 2 96 22 Regions Visited 2 Branch Regions 1 Pre-discovered Areas 2 | . 2 . Known Exits Taken . | . . . Unknown Exits Taken 2 | 1 1 . Scrap Searched . | . . . Spaces Dug . | . . . Terrain Destroyed 1 | . . 1 Melee . | . . . Projectile 1 | . . 1 AOE . | . . . Terrain Rammed . | . . . Walls Destroyed . | . . . Machines Disabled . | . . . Actions | -11 -10 -10 --------- Run | Yrd Mat Sub Total 1356 | . 930 426 Wait 68 | . 31 37 Move 1178 | . 819 359 Hop . | . . . Pick Up 3 | . 3 . Fast Attach 6 | . 3 3 Attach 5 | . 1 4 Detach 2 | . 2 . Swap 8 | . 6 2 Drop 10 | . 6 4 Fire 71 | . 55 16 Melee . | . . . Ram . | . . . Kick 4 | . 4 . Crush 1 | . . 1 Escape Stasis . | . . . Rewire . | . . . Trap . | . . . Miscellaneous . | . . . Route ------- -11/Scrapyard -10/Materials (discovered 5 exits: [*Mat x3] / [*Min] / [*Sub]) -10/Subcaves History --------- Turn | Location | Event 1 | -11/Scrapyard | Discovered new exit (range 0) 1 | -11/Scrapyard | Entered Materials 254 | -10/Materials | Discovered new exit (range 8) 276 | -10/Materials | Discovered new exit (range 9) 307 | -10/Materials | Build established: Mutant 531 | -10/Materials | Discovered new exit (range 16) 842 | -10/Materials | Discovered new exit (range 4) 1350 | -10/Materials | Discovered new exit (range 3) 1744 | -10/Materials | Entered Subcaves 1745 | -10/Subcaves | Approached by a straggling Scientist 2347 | -10/Subcaves | Shifting Twisted Machinery released Spk. Treads 2354 | -10/Subcaves | Shifting Twisted Machinery released Sub. Beam Cannon 2446 | -10/Subcaves | Ambushed by Subdwellers from Twisted Machinery 2488 | -10/Subcaves | Core integrity fell below 50% 2502 | -10/Subcaves | Core integrity fell below 20% 2516 | -10/Subcaves | Lost 3 parts (1p2n) 2525 | -10/Subcaves | Destroyed by 3U-UA4(R) with Subdweller Beam Cannon Last Messages --------------- 02459_ Sub. Power Source shoots sparks and powers down. 02459_ Aluminum Leg destroyed. 02470_ Dropped Broken Sub. Power Source. 02478_ Critical hit (Meltdown: +300). 02480_ Power failure, Ion Engine shutdown. 02484_ Critical hit (Meltdown: +250). 02485_ Ion Engine destroyed. 02487_ Overheating: Matter decay (-29). 02495_ 5P-6AD(R) suffers critical hit (Destroy). 02495_ Destroyed Sub. Monowheel. 02499_ 5P-6AD(R) heat short circuits Sub. Laser. 02503_ Destroyed Scrap Shield. 02507_ Destroyed Sub. Power Source. 02507_ 5P-6AD(R) destroyed. 02510_ Acquired 50 matter. 02517_ Ion Engine destroyed. 02517_ Critical hit (Meltdown: +260). 02521_ Acquired Broken Sub. Power Source. 02522_ 3U-UA4(R) affixes Scrap Shield Fragment to Scrap Shield. 02522_ Slammed into 3U-UA4(R). Map ----- +----------------------------------------------------+ | ?????????????????????????????????????????????????? | | ?????????????????????????????????????????????????? | | ?????????????????????????????????????????????????? | | ?????????????????????????????????????????????????? | | ?????????????????????????????????????????????????? | | ?????????????????????????????????????????????????? | | ?????????????????????????????????????????????????? | | ?????????????????????????????????????????????????? | | ?????????????????????????????????????????????????? | | ???????????????? #####???????????????????????????? | | ???????????????#######???????????????????????????? | | ???????????????### "###??????????????????????????? | | ???????????????## ####?????????????????????????? | | ??????????????### ###?????????????????????????? | | ?????????????#### ##?????????????????????????? | | ?????????????### ## ##?????????????????????????? | | ?????????????## ########???????????????????????? | | ?????????????### #######???????????????????????? | | ?????????????#### ###??????????????????????? | | ??????????????#### ###??????????????????????? | | ???????????????#### ##??????????????????????? | | ???????????????#### ###### ?????????????????? | | ??????????????#### #######?????????????????? | | ??????????????### ###""##?????????????????? | | ??????????????## ## ## "##?????????????????? | | ######????###### ###; @R # ?????????????????? | | #######?######## ###; ## ""???????????? | | " ########"### ""##;#### " ?????????? | | " ##### ### ""##### ## " ????????? | | " ### #### ] " ###?? ####????????? | | ### ##### ###????######????????? | | #### #### ##?????####??????????? | | ### " ###???????????????????? | | ##### """ ###???????????????????? | | ##### ####""= ##????????????????????? | | #### ######## ##????????????????????? | | ## ########## ###???????????????????? | | ###### ##???????????????????? | | ## ##??## ##???????????????????? | | ### ## ### ##????####???????????????????? | | #### ######### ## # ????####???????????????????? | | ##### ####### #####??? ##?????????????????????? | | ############## #####??? ##?????????????????????? | | ####### ### ###???? ###????????????????????? | | ##### ## ##### ####???????????????????? | | ##### ### ##### ###???????????????????? | | ##### ##### ### ???????????????????? | | ### ##### ### ???????????????????????? | | ######## ## ##???????????????????????? | | ######## ### ##???????????????????????? | +----------------------------------------------------+ Best States ------------- Heat Dissipation 25 Energy Generation 15 Energy Capacity 250 Matter Stores 300 Matter Capacity 300 Sight Range 16 Terrain Scan Density 10 Evasion (%) 55 Recoil Reduction 2 Item Schematics ----------------- None Robot Schematics ------------------ None Fabricated ------------ Nothing Repaired ---------- Nothing Studied --------- None Alien Tech Used ----------------- None Achievements -------------- None Challenges ------------ None Game ------ Seed NeutrinoAngularMinigun Manual? 0 Play Time 00:17:00 Cumulative 204.1 hours Start 2025.12.19 @ 14:00:31 End 2025.12.19 @ 14:17:12 Sessions 1 Manual Loads 0 Difficulty Rogue Special Mode None Game No. 280 Rogue 279 Adventurer 1 Explorer 0 Win Type - Total 2 Types 1/0/0/1/0/0/0/0/0/0 Lore% 66 Gallery% 62 Achievement% 55 Wizard Run 0 Options --------- Layout 0 ASCII 0 Keyboard 0 Movement Numpad Keybinds 0 Fullscreen 1 Font 24/Smallcaps Map View 76x50 Zoom Use 0% Tactical HUD 1 Map Filters NONE Filters NONE Steam 1 RUN: 3535ce08-52c0-4600-8496-c62892359c98